[Event "NJSK 2022 Jeugd C"]
[Site "Almelo, Netherlands"]
[Date "2022.05.03"]
[Round "4.1"]
[White "Zhu, Chenwu"]
[Black "Smeets, Kobe"]
[Result "1/2-1/2"]
[TimeControl "90min + 30sec/move"]
[WhiteElo "1968"]
[BlackElo "1984"]

1. e4 {[%clk 01:30:57]} {[%emt 00:00:02]} c5 {[%clk 01:30:56]} {[%emt
00:00:05]} 2. Nf3 {[%clk 01:31:25]} {[%emt 00:00:02]} e6 {[%clk 01:31:20]}
{[%emt 00:00:07]} 3. d4 {[%clk 01:31:52]} {[%emt 00:00:03]} cxd4 {[%clk
01:31:44]} {[%emt 00:00:05]} 4. Nxd4 {[%clk 01:32:19]} {[%emt 00:00:04]} Nc6
{[%clk 01:32:05]} {[%emt 00:00:09]} 5. Nc3 {[%clk 01:32:42]} {[%emt 00:00:07]}
Qc7 {[%clk 01:32:30]} {[%emt 00:00:05]} 6. Be3 {[%clk 01:30:33]} {[%emt
00:02:38]} a6 {[%clk 01:32:54]} {[%emt 00:00:06]} 7. Qd2 {[%clk 01:29:23]}
{[%emt 00:01:40]} Nf6 {[%clk 01:33:06]} {[%emt 00:00:18]} 8. Bd3 {[%clk
01:28:51]} {[%emt 00:01:03]} b5 {[%clk 01:32:17]} {[%emt 00:01:19]} 9. f4
{[%clk 01:27:42]} {[%emt 00:01:38]} Be7 {[%clk 01:24:15]} {[%emt 00:08:33]} 10.
Nxc6 {[%clk 01:26:00]} {[%emt 00:02:11]} Qxc6 {[%clk 01:23:36]} {[%emt
00:01:09]} 11. e5 {[%clk 01:25:53]} {[%emt 00:00:38]} b4 {[%clk 01:23:59]}
{[%emt 00:00:06]} 12. Ne2 {[%clk 01:18:36]} {[%emt 00:07:47]} Nd5 {[%clk
01:22:46]} {[%emt 00:01:43]} 13. Bf2 {[%clk 01:14:04]} {[%emt 00:05:02]} Bb7
{[%clk 01:21:52]} {[%emt 00:01:24]} 14. Nd4 {[%clk 01:13:44]} {[%emt 00:00:50]}
Qc7 {[%clk 01:20:54]} {[%emt 00:01:28]} 15. O-O {[%clk 01:13:06]} {[%emt
00:01:08]} O-O {[%clk 01:19:15]} {[%emt 00:02:09]} 16. Rae1 {[%clk 01:11:57]}
{[%emt 00:01:40]} f5 {[%clk 01:16:28]} {[%emt 00:03:16]} 17. Kh1 {[%clk
01:06:34]} {[%emt 00:05:53]} Rac8 {[%clk 01:12:30]} {[%emt 00:04:28]} 18. Bg1
{[%clk 01:05:35]} {[%emt 00:01:29]} Nb6 {[%clk 01:11:56]} {[%emt 00:01:04]} 19.
Qe2 {[%clk 01:03:35]} {[%emt 00:02:29]} Ra8 {[%clk 01:04:02]} {[%emt 00:08:25]}
20. Qh5 {[%clk 01:02:02]} {[%emt 00:02:03]} g6 {[%clk 01:00:47]} {[%emt
00:03:45]} 21. Qh6 {[%clk 01:00:26]} {[%emt 00:02:06]} Nc4 {[%clk 00:57:09]}
{[%emt 00:04:08]} 22. b3 {[%clk 00:58:05]} {[%emt 00:02:51]} Nd2 {[%clk
00:57:10]} {[%emt 00:00:29]} 23. Rf2 {[%clk 00:56:39]} {[%emt 00:01:56]} Ne4
{[%clk 00:57:33]} {[%emt 00:00:07]} 24. Rf3 {[%clk 00:54:23]} {[%emt 00:02:46]}
Bd5 {[%clk 00:55:31]} {[%emt 00:02:32]} 25. Rh3 {[%clk 00:47:27]} {[%emt
00:07:25]} Rf7 {[%clk 00:55:36]} {[%emt 00:00:26]} 26. Be3 {[%clk 00:38:07]}
{[%emt 00:09:50]} Qb7 {[%clk 00:54:04]} {[%emt 00:02:02]} 27. Nf3 {[%clk
00:34:48]} {[%emt 00:03:48]} Bf8 {[%clk 00:40:55]} {[%emt 00:13:41]} 1/2-1/2

[Event "NJSK 2022 Jeugd C"]
[Site "Almelo, Netherlands"]
[Date "2022.05.03"]
[Round "4.2"]
[White "Van Arendonk, Polle"]
[Black "Kazarjan, Gachatur"]
[Result "1-0"]
[TimeControl "90min + 30sec/move"]
[WhiteElo "1784"]
[BlackElo "1661"]

1. e4 {[%clk 01:30:58]} {[%emt 00:00:02]} c5 {[%clk 01:30:57]} {[%emt
00:00:04]} 2. Nf3 {[%clk 01:31:25]} {[%emt 00:00:03]} Nc6 {[%clk 01:31:22]}
{[%emt 00:00:05]} 3. d4 {[%clk 01:31:50]} {[%emt 00:00:04]} cxd4 {[%clk
01:31:48]} {[%emt 00:00:04]} 4. Nxd4 {[%clk 01:32:18]} {[%emt 00:00:02]} g6
{[%clk 01:32:11]} {[%emt 00:00:07]} 5. c4 {[%clk 01:32:37]} {[%emt 00:00:12]}
Bg7 {[%clk 01:32:36]} {[%emt 00:00:04]} 6. Be3 {[%clk 01:33:03]} {[%emt
00:00:04]} Nf6 {[%clk 01:33:02]} {[%emt 00:00:04]} 7. Nc3 {[%clk 01:33:30]}
{[%emt 00:00:04]} O-O {[%clk 01:33:25]} {[%emt 00:00:06]} 8. Be2 {[%clk
01:33:44]} {[%emt 00:00:16]} d6 {[%clk 01:33:49]} {[%emt 00:00:07]} 9. O-O
{[%clk 01:33:58]} {[%emt 00:00:16]} Bd7 {[%clk 01:34:16]} {[%emt 00:00:03]} 10.
Qd2 {[%clk 01:33:50]} {[%emt 00:00:38]} Nxd4 {[%clk 01:34:29]} {[%emt
00:00:17]} 11. Bxd4 {[%clk 01:34:14]} {[%emt 00:00:06]} Bc6 {[%clk 01:34:55]}
{[%emt 00:00:05]} 12. f3 {[%clk 01:34:38]} {[%emt 00:00:05]} Nd7 {[%clk
01:35:19]} {[%emt 00:00:06]} 13. Be3 {[%clk 01:34:42]} {[%emt 00:00:27]} a5
{[%clk 01:35:38]} {[%emt 00:00:10]} 14. b3 {[%clk 01:35:00]} {[%emt 00:00:12]}
Rc8 {[%clk 01:35:01]} {[%emt 00:01:07]} 15. Rac1 {[%clk 01:33:52]} {[%emt
00:01:39]} b6 {[%clk 01:34:01]} {[%emt 00:01:30]} 16. Rfe1 {[%clk 01:28:48]}
{[%emt 00:05:34]} Nc5 {[%clk 01:31:46]} {[%emt 00:02:45]} 17. Bf1 {[%clk
01:23:34]} {[%emt 00:05:44]} Qd7 {[%clk 01:26:33]} {[%emt 00:05:43]} 18. Nd5
{[%clk 01:19:07]} {[%emt 00:04:57]} Bxd5 {[%clk 01:26:50]} {[%emt 00:00:13]} 19.
exd5 {[%clk 01:19:16]} {[%emt 00:00:20]} Rfe8 {[%clk 01:24:11]} {[%emt
00:03:10]} 20. Bf4 {[%clk 01:11:42]} {[%emt 00:08:03]} Rcd8 {[%clk 01:20:18]}
{[%emt 00:04:23]} 21. Bg5 {[%clk 01:06:18]} {[%emt 00:05:55]} Rc8 {[%clk
01:15:42]} {[%emt 00:05:06]} 22. Re2 {[%clk 01:00:21]} {[%emt 00:06:26]} e5
{[%clk 01:14:00]} {[%emt 00:02:12]} 23. dxe6 {[%clk 00:58:33]} {[%emt
00:02:18]} Rxe6 {[%clk 01:12:25]} {[%emt 00:02:05]} 24. Rxe6 {[%clk 00:53:54]}
{[%emt 00:05:10]} Nxe6 {[%clk 01:12:26]} {[%emt 00:00:28]} 25. Be3 {[%clk
00:53:18]} {[%emt 00:01:06]} Qc6 {[%clk 01:10:24]} {[%emt 00:02:33]} 26. Rd1
{[%clk 00:50:03]} {[%emt 00:03:44]} Rd8 {[%clk 01:08:19]} {[%emt 00:02:34]} 27.
Qd5 {[%clk 00:47:42]} {[%emt 00:02:52]} Qc7 {[%clk 01:07:07]} {[%emt 00:01:42]}
28. g3 {[%clk 00:39:01]} {[%emt 00:09:11]} Qb8 {[%clk 01:02:46]} {[%emt
00:04:50]} 29. Bh3 {[%clk 00:32:36]} {[%emt 00:06:56]} Nc7 {[%clk 01:02:04]}
{[%emt 00:01:12]} 30. Qc6 {[%clk 00:30:10]} {[%emt 00:02:57]} Na8 {[%clk
00:57:38]} {[%emt 00:04:56]} 31. Bg5 {[%clk 00:26:21]} {[%emt 00:04:19]} f6
{[%clk 00:57:12]} {[%emt 00:00:56]} 32. Bf4 {[%clk 00:25:42]} {[%emt 00:01:08]}
Bf8 {[%clk 00:57:15]} {[%emt 00:00:26]} 33. Be3 {[%clk 00:19:16]} {[%emt
00:06:58]} Re8 {[%clk 00:52:39]} {[%emt 00:05:05]} 34. Bd4 {[%clk 00:18:10]}
{[%emt 00:01:36]} Kg7 {[%clk 00:51:29]} {[%emt 00:01:40]} 35. Kf1 {[%clk
00:15:33]} {[%emt 00:03:08]} Re7 {[%clk 00:48:13]} {[%emt 00:03:45]} 36. Re1
{[%clk 00:15:06]} {[%emt 00:00:57]} Rc7 {[%clk 00:45:52]} {[%emt 00:02:50]} 37.
Qd5 {[%clk 00:13:47]} {[%emt 00:01:50]} Qb7 {[%clk 00:45:07]} {[%emt 00:01:15]}
38. Be6 {[%clk 00:13:12]} {[%emt 00:01:05]} Qb8 {[%clk 00:44:14]} {[%emt
00:01:23]} 39. g4 {[%clk 00:11:01]} {[%emt 00:02:40]} Be7 {[%clk 00:40:53]}
{[%emt 00:03:51]} 40. g5 {[%clk 00:10:40]} {[%emt 00:00:52]} Qf8 {[%clk
00:37:56]} {[%emt 00:03:26]} 41. Bg4 {[%clk 00:07:09]} {[%emt 00:04:02]} h5
{[%clk 00:33:08]} {[%emt 00:05:18]} 42. Bh3 {[%clk 00:06:59]} {[%emt 00:00:40]}
Kh7 {[%clk 00:33:25]} {[%emt 00:00:13]} 43. gxf6 {[%clk 00:07:09]} {[%emt
00:00:19]} Bxf6 {[%clk 00:33:39]} {[%emt 00:00:17]} 44. Bxf6 {[%clk 00:07:30]}
{[%emt 00:00:09]} 1-0

[Event "NJSK 2022 Jeugd C"]
[Site "Almelo, Netherlands"]
[Date "2022.05.03"]
[Round "4.3"]
[White "De Winter, Arthur"]
[Black "Arnold, Rhys"]
[Result "1/2-1/2"]
[TimeControl "90min + 30sec/move"]
[WhiteElo "2138"]
[BlackElo "1846"]

1. e4 {[%clk 01:30:57]} {[%emt 00:00:02]} c5 {[%clk 01:30:53]} {[%emt
00:00:07]} 2. Nf3 {[%clk 01:31:25]} {[%emt 00:00:02]} e6 {[%clk 01:31:16]}
{[%emt 00:00:07]} 3. d4 {[%clk 01:31:30]} {[%emt 00:00:24]} cxd4 {[%clk
01:31:42]} {[%emt 00:00:05]} 4. Nxd4 {[%clk 01:31:56]} {[%emt 00:00:04]} Nf6
{[%clk 01:32:08]} {[%emt 00:00:05]} 5. Nc3 {[%clk 01:24:01]} {[%emt 00:08:25]}
Nc6 {[%clk 01:32:30]} {[%emt 00:00:07]} 6. Ndb5 {[%clk 01:22:19]} {[%emt
00:02:12]} Bb4 {[%clk 01:32:54]} {[%emt 00:00:06]} 7. a3 {[%clk 01:22:47]}
{[%emt 00:00:03]} Bxc3+ {[%clk 01:33:19]} {[%emt 00:00:04]} 8. Nxc3 {[%clk
01:23:13]} {[%emt 00:00:04]} d5 {[%clk 01:33:26]} {[%emt 00:00:23]} 9. exd5
{[%clk 01:23:08]} {[%emt 00:00:36]} exd5 {[%clk 01:33:50]} {[%emt 00:00:06]} 10.
Bd3 {[%clk 01:22:35]} {[%emt 00:01:03]} O-O {[%clk 01:34:11]} {[%emt 00:00:08]}
11. O-O {[%clk 01:21:39]} {[%emt 00:01:26]} d4 {[%clk 01:34:38]} {[%emt
00:00:03]} 12. Ne4 {[%clk 01:17:36]} {[%emt 00:04:33]} Bf5 {[%clk 01:29:19]}
{[%emt 00:05:50]} 13. Ng3 {[%clk 01:13:31]} {[%emt 00:04:35]} Bxd3 {[%clk
01:29:38]} {[%emt 00:00:10]} 14. Qxd3 {[%clk 01:13:56]} {[%emt 00:00:05]} Re8
{[%clk 01:26:03]} {[%emt 00:04:06]} 15. Bg5 {[%clk 01:11:05]} {[%emt 00:03:20]}
h6 {[%clk 01:25:37]} {[%emt 00:00:57]} 16. Bf4 {[%clk 01:10:10]} {[%emt
00:01:24]} Nd5 {[%clk 01:25:51]} {[%emt 00:00:17]} 17. Bd2 {[%clk 01:09:40]}
{[%emt 00:01:00]} Qd7 {[%clk 01:09:34]} {[%emt 00:16:47]} 18. Rfe1 {[%clk
01:07:31]} {[%emt 00:02:38]} Rxe1+ {[%clk 01:09:08]} {[%emt 00:00:55]} 19. Rxe1
{[%clk 01:07:57]} {[%emt 00:00:04]} Re8 {[%clk 01:09:21]} {[%emt 00:00:18]} 20.
Rxe8+ {[%clk 01:06:22]} {[%emt 00:02:05]} Qxe8 {[%clk 01:09:46]} {[%emt
00:00:05]} 21. Nf5 {[%clk 01:01:53]} {[%emt 00:04:59]} Qe5 {[%clk 01:06:16]}
{[%emt 00:04:00]} 22. g3 {[%clk 00:54:57]} {[%emt 00:07:26]} Nde7 {[%clk
01:01:08]} {[%emt 00:05:37]} 23. Nxe7+ {[%clk 00:46:07]} {[%emt 00:09:20]} Qxe7
{[%clk 01:01:29]} {[%emt 00:00:10]} 24. Qf5 {[%clk 00:45:07]} {[%emt 00:01:30]}
a6 {[%clk 00:55:52]} {[%emt 00:06:07]} 25. h4 {[%clk 00:42:22]} {[%emt
00:03:14]} g6 {[%clk 00:42:22]} {[%emt 00:14:00]} 26. Qd5 {[%clk 00:36:12]}
{[%emt 00:06:40]} h5 {[%clk 00:41:25]} {[%emt 00:01:27]} 27. Kf1 {[%clk
00:35:43]} {[%emt 00:01:00]} Qe5 {[%clk 00:34:12]} {[%emt 00:07:42]} 28. Qf3
{[%clk 00:18:51]} {[%emt 00:17:22]} Qe6 {[%clk 00:32:57]} {[%emt 00:01:45]} 29.
Kg2 {[%clk 00:18:09]} {[%emt 00:01:12]} Kg7 {[%clk 00:32:47]} {[%emt 00:00:39]}
30. Bg5 {[%clk 00:18:12]} {[%emt 00:00:29]} b5 {[%clk 00:27:04]} {[%emt
00:06:14]} 31. Qf4 {[%clk 00:15:51]} {[%emt 00:02:51]} Qd5+ {[%clk 00:24:17]}
{[%emt 00:03:17]} 32. Kg1 {[%clk 00:16:02]} {[%emt 00:00:19]} Qe6 {[%clk
00:24:18]} {[%emt 00:00:28]} 1/2-1/2

[Event "NJSK 2022 Jeugd C"]
[Site "Almelo, Netherlands"]
[Date "2022.05.03"]
[Round "4.4"]
[White "Van Batenburg, Mees"]
[Black "Madularea, David"]
[Result "1/2-1/2"]
[TimeControl "90min + 30sec/move"]
[WhiteElo "1713"]
[BlackElo "1774"]

1. e4 {[%clk 01:30:53]} {[%emt 00:00:06]} c5 {[%clk 01:30:30]} {[%emt
00:00:32]} 2. b4 {[%clk 01:30:11]} {[%emt 00:01:12]} cxb4 {[%clk 01:26:27]}
{[%emt 00:04:33]} 3. a3 {[%clk 01:30:33]} {[%emt 00:00:08]} e5 {[%clk
01:26:52]} {[%emt 00:00:04]} 4. Nf3 {[%clk 01:30:55]} {[%emt 00:00:08]} Nc6
{[%clk 01:25:55]} {[%emt 00:01:28]} 5. Bb2 {[%clk 01:31:16]} {[%emt 00:00:09]}
d6 {[%clk 01:25:14]} {[%emt 00:01:10]} 6. axb4 {[%clk 01:28:42]} {[%emt
00:03:04]} Nxb4 {[%clk 01:25:14]} {[%emt 00:00:29]} 7. c3 {[%clk 01:28:31]}
{[%emt 00:00:43]} Nc6 {[%clk 01:25:35]} {[%emt 00:00:08]} 8. d4 {[%clk
01:28:25]} {[%emt 00:00:37]} Nf6 {[%clk 01:18:28]} {[%emt 00:07:36]} 9. Bb5
{[%clk 01:26:54]} {[%emt 00:02:01]} Bd7 {[%clk 01:16:36]} {[%emt 00:02:22]} 10.
Qe2 {[%clk 01:26:03]} {[%emt 00:01:22]} Be7 {[%clk 01:12:10]} {[%emt 00:04:55]}
11. Nbd2 {[%clk 01:24:02]} {[%emt 00:02:31]} Qc7 {[%clk 01:09:16]} {[%emt
00:03:24]} 12. O-O {[%clk 01:22:33]} {[%emt 00:01:59]} O-O {[%clk 01:08:42]}
{[%emt 00:01:04]} 13. Ba3 {[%clk 01:15:37]} {[%emt 00:07:27]} Rfe8 {[%clk
01:03:51]} {[%emt 00:05:20]} 14. Bc4 {[%clk 01:13:07]} {[%emt 00:03:01]} Na5
{[%clk 01:00:05]} {[%emt 00:04:15]} 15. Bd3 {[%clk 01:09:31]} {[%emt 00:04:07]}
Bf8 {[%clk 00:55:43]} {[%emt 00:04:51]} 16. d5 {[%clk 01:04:54]} {[%emt
00:05:07]} b6 {[%clk 00:54:02]} {[%emt 00:02:11]} 17. Rfc1 {[%clk 01:02:47]}
{[%emt 00:02:37]} Nb7 {[%clk 00:51:05]} {[%emt 00:03:27]} 18. Bb5 {[%clk
01:01:50]} {[%emt 00:01:27]} Nc5 {[%clk 00:49:05]} {[%emt 00:02:30]} 19. Bxc5
{[%clk 01:01:10]} {[%emt 00:01:10]} bxc5 {[%clk 00:48:45]} {[%emt 00:00:50]} 20.
Rcb1 {[%clk 01:00:43]} {[%emt 00:00:57]} g6 {[%clk 00:42:05]} {[%emt 00:07:09]}
21. Bxd7 {[%clk 00:52:46]} {[%emt 00:08:28]} Nxd7 {[%clk 00:41:12]} {[%emt
00:01:22]} 22. Ra6 {[%clk 00:52:04]} {[%emt 00:01:12]} Nb6 {[%clk 00:39:50]}
{[%emt 00:01:53]} 23. Nc4 {[%clk 00:51:51]} {[%emt 00:00:44]} Reb8 {[%clk
00:38:10]} {[%emt 00:02:09]} 24. Rba1 {[%clk 00:51:45]} {[%emt 00:00:37]} Bh6
{[%clk 00:31:42]} {[%emt 00:06:57]} 25. h4 {[%clk 00:49:02]} {[%emt 00:03:14]}
Kh8 {[%clk 00:25:00]} {[%emt 00:07:11]} 26. Qa2 {[%clk 00:47:53]} {[%emt
00:01:41]} Nxc4 {[%clk 00:23:59]} {[%emt 00:01:30]} 27. Qxc4 {[%clk 00:47:55]}
{[%emt 00:00:28]} Rb7 {[%clk 00:23:17]} {[%emt 00:01:11]} 28. Rc6 {[%clk
00:48:05]} {[%emt 00:00:21]} Qe7 {[%clk 00:22:52]} {[%emt 00:00:54]} 29. Qa6
{[%clk 00:46:47]} {[%emt 00:01:49]} 1/2-1/2

[Event "NJSK 2022 Jeugd C"]
[Site "Almelo, Netherlands"]
[Date "2022.05.03"]
[Round "4.5"]
[White "Kumar, Prajit Sai"]
[Black "Lopes, Samuel"]
[Result "1-0"]
[TimeControl "90min + 30sec/move"]
[WhiteElo "2042"]
[BlackElo "1600"]

1. d4 {[%clk 01:30:59]} {[%emt 00:00:01]} Nf6 {[%clk 01:30:45]} {[%emt
00:00:15]} 2. Nf3 {[%clk 01:31:23]} {[%emt 00:00:05]} g6 {[%clk 01:31:00]}
{[%emt 00:00:15]} 3. Bg5 {[%clk 01:31:47]} {[%emt 00:00:06]} Bg7 {[%clk
01:31:19]} {[%emt 00:00:11]} 4. Nbd2 {[%clk 01:32:13]} {[%emt 00:00:05]} h6
{[%clk 01:31:30]} {[%emt 00:00:19]} 5. Bh4 {[%clk 01:32:38]} {[%emt 00:00:04]}
O-O {[%clk 01:31:36]} {[%emt 00:00:25]} 6. e4 {[%clk 01:33:03]} {[%emt
00:00:04]} d6 {[%clk 01:31:46]} {[%emt 00:00:20]} 7. Bd3 {[%clk 01:33:03]}
{[%emt 00:00:30]} Nbd7 {[%clk 01:31:01]} {[%emt 00:01:16]} 8. c3 {[%clk
01:33:27]} {[%emt 00:00:06]} e5 {[%clk 01:31:12]} {[%emt 00:00:18]} 9. dxe5
{[%clk 01:33:48]} {[%emt 00:00:09]} dxe5 {[%clk 01:30:56]} {[%emt 00:00:47]} 10.
Qc2 {[%clk 01:33:29]} {[%emt 00:00:48]} Qe8 {[%clk 01:29:47]} {[%emt 00:01:39]}
11. O-O {[%clk 01:33:18]} {[%emt 00:00:41]} g5 {[%clk 01:26:18]} {[%emt
00:04:00]} 12. Bg3 {[%clk 01:33:42]} {[%emt 00:00:06]} Nh5 {[%clk 01:26:38]}
{[%emt 00:00:10]} 13. Rfe1 {[%clk 01:33:12]} {[%emt 00:00:58]} Nf4 {[%clk
01:25:40]} {[%emt 00:01:29]} 14. Bf1 {[%clk 01:33:04]} {[%emt 00:00:38]} Kh8
{[%clk 01:23:54]} {[%emt 00:02:17]} 15. Nc4 {[%clk 01:33:07]} {[%emt 00:00:26]}
Rg8 {[%clk 01:23:41]} {[%emt 00:00:43]} 16. Ne3 {[%clk 01:32:26]} {[%emt
00:01:10]} Nf8 {[%clk 01:21:13]} {[%emt 00:02:59]} 17. Rad1 {[%clk 01:31:00]}
{[%emt 00:01:56]} N8e6 {[%clk 01:17:05]} {[%emt 00:04:38]} 18. Nf5 {[%clk
01:25:35]} {[%emt 00:05:55]} f6 {[%clk 01:11:12]} {[%emt 00:06:23]} 19. Bc4
{[%clk 01:24:57]} {[%emt 00:01:08]} h5 {[%clk 01:10:25]} {[%emt 00:01:17]} 20.
Nd2 {[%clk 01:22:49]} {[%emt 00:02:38]} Bf8 {[%clk 01:05:48]} {[%emt 00:05:08]}
21. b4 {[%clk 01:19:42]} {[%emt 00:03:37]} a5 {[%clk 00:51:05]} {[%emt
00:15:13]} 22. a3 {[%clk 01:19:46]} {[%emt 00:00:25]} Ng6 {[%clk 00:49:42]}
{[%emt 00:01:53]} 23. f3 {[%clk 01:17:41]} {[%emt 00:02:35]} h4 {[%clk
00:49:39]} {[%emt 00:00:33]} 24. Bf2 {[%clk 01:18:06]} {[%emt 00:00:05]} Ngf4
{[%clk 00:49:56]} {[%emt 00:00:13]} 25. h3 {[%clk 01:17:53]} {[%emt 00:00:42]}
Bd7 {[%clk 00:43:08]} {[%emt 00:07:19]} 26. Rb1 {[%clk 01:14:59]} {[%emt
00:03:24]} b5 {[%clk 00:38:29]} {[%emt 00:05:10]} 27. Ba2 {[%clk 01:11:27]}
{[%emt 00:04:02]} a4 {[%clk 00:36:56]} {[%emt 00:02:02]} 28. c4 {[%clk
01:06:24]} {[%emt 00:05:33]} bxc4 {[%clk 00:34:20]} {[%emt 00:03:06]} 29. Bxc4
{[%clk 01:06:32]} {[%emt 00:00:22]} Bb5 {[%clk 00:34:04]} {[%emt 00:00:46]} 30.
Nf1 {[%clk 01:04:06]} {[%emt 00:02:55]} Bxc4 {[%clk 00:29:31]} {[%emt
00:05:05]} 31. Qxc4 {[%clk 01:04:27]} {[%emt 00:00:09]} Qh5 {[%clk 00:29:01]}
{[%emt 00:00:58]} 32. Nh2 {[%clk 01:03:41]} {[%emt 00:01:17]} Qf7 {[%clk
00:19:18]} {[%emt 00:10:13]} 33. Rbc1 {[%clk 01:02:37]} {[%emt 00:01:34]} Rd8
{[%clk 00:18:59]} {[%emt 00:00:49]} 34. Rc3 {[%clk 00:57:39]} {[%emt 00:05:28]}
Rd2 {[%clk 00:16:23]} {[%emt 00:03:06]} 35. Ng4 {[%clk 00:57:07]} {[%emt
00:01:02]} Qg6 {[%clk 00:12:43]} {[%emt 00:04:09]} 36. Rc2 {[%clk 00:51:57]}
{[%emt 00:05:41]} Rd3 {[%clk 00:12:08]} {[%emt 00:01:04]} 37. Rc3 {[%clk
00:51:25]} {[%emt 00:01:03]} Rd2 {[%clk 00:11:59]} {[%emt 00:00:39]} 38. Kh1
{[%clk 00:50:58]} {[%emt 00:00:57]} Rd8 {[%clk 00:06:53]} {[%emt 00:05:36]} 39.
Be3 {[%clk 00:50:35]} {[%emt 00:00:53]} Bd6 {[%clk 00:03:21]} {[%emt 00:04:03]}
40. Rd1 {[%clk 00:49:44]} {[%emt 00:01:20]} Ng7 {[%clk 00:02:11]} {[%emt
00:01:40]} 41. Ngh6 {[%clk 00:46:52]} {[%emt 00:03:22]} Rgf8 {[%clk 00:02:30]}
{[%emt 00:00:12]} 42. Nxg7 {[%clk 00:46:39]} {[%emt 00:00:43]} Qxg7 {[%clk
00:02:15]} {[%emt 00:00:44]} 43. Nf5 {[%clk 00:46:42]} {[%emt 00:00:27]} Qd7
{[%clk 00:02:30]} {[%emt 00:00:15]} 44. Rc2 {[%clk 00:46:14]} {[%emt 00:00:57]}
Ne6 {[%clk 00:02:10]} {[%emt 00:00:51]} 45. Rcd2 {[%clk 00:46:25]} {[%emt
00:00:20]} Ng7 {[%clk 00:01:31]} {[%emt 00:01:09]} 46. Nxd6 {[%clk 00:44:11]}
{[%emt 00:02:44]} cxd6 {[%clk 00:01:59]} {[%emt 00:00:01]} 47. Qa6 {[%clk
00:44:18]} {[%emt 00:00:23]} Ne8 {[%clk 00:01:51]} {[%emt 00:00:38]} 48. Rc1
{[%clk 00:43:29]} {[%emt 00:01:18]} Nc7 {[%clk 00:01:47]} {[%emt 00:00:35]} 49.
Qe2 {[%clk 00:41:32]} {[%emt 00:02:27]} Nb5 {[%clk 00:02:00]} {[%emt 00:00:16]}
50. Rd5 {[%clk 00:41:43]} {[%emt 00:00:19]} Nc7 {[%clk 00:01:48]} {[%emt
00:00:43]} 51. Ra5 {[%clk 00:39:50]} {[%emt 00:02:22]} Ra8 {[%clk 00:02:17]}
{[%emt 00:00:02]} 52. Bb6 {[%clk 00:40:07]} {[%emt 00:00:13]} Ne6 {[%clk
00:02:08]} {[%emt 00:00:39]} 53. Qd2 {[%clk 00:38:28]} {[%emt 00:02:08]} Rxa5
{[%clk 00:02:05]} {[%emt 00:00:34]} 54. bxa5 {[%clk 00:38:50]} {[%emt
00:00:08]} Ra8 {[%clk 00:02:05]} {[%emt 00:00:29]} 55. Qd5 {[%clk 00:38:50]}
{[%emt 00:00:30]} Rc8 {[%clk 00:01:59]} {[%emt 00:00:37]} 56. Rd1 {[%clk
00:38:19]} {[%emt 00:01:01]} Rc6 {[%clk 00:01:11]} {[%emt 00:01:17]} 57. Qb5
{[%clk 00:37:23]} {[%emt 00:01:26]} Qb7 {[%clk 00:01:18]} {[%emt 00:00:24]} 58.
Qxa4 {[%clk 00:37:24]} {[%emt 00:00:30]} Qa8 {[%clk 00:01:19]} {[%emt
00:00:29]} 59. Qb3 {[%clk 00:37:14]} {[%emt 00:00:40]} Qc8 {[%clk 00:01:25]}
{[%emt 00:00:24]} 60. Kh2 {[%clk 00:35:01]} {[%emt 00:02:42]} Nf4 {[%clk
00:01:42]} {[%emt 00:00:14]} 61. Rd2 {[%clk 00:34:44]} {[%emt 00:00:46]} Rc1
{[%clk 00:01:08]} {[%emt 00:01:05]} 62. Qf7 {[%clk 00:31:55]} {[%emt 00:03:18]}
Rh1+ {[%clk 00:01:11]} {[%emt 00:00:26]} 63. Kxh1 {[%clk 00:32:21]} {[%emt
00:00:05]} Qc1+ {[%clk 00:01:37]} {[%emt 00:00:05]} 64. Kh2 {[%clk 00:31:11]}
{[%emt 00:01:39]} Qxd2 {[%clk 00:01:59]} {[%emt 00:00:08]} 65. Qxf6+ {[%clk
00:31:38]} {[%emt 00:00:03]} Kh7 {[%clk 00:01:38]} {[%emt 00:00:52]} 66. Qxg5
{[%clk 00:32:00]} {[%emt 00:00:07]} Qe2 {[%clk 00:00:54]} {[%emt 00:01:14]} 67.
Qxh4+ {[%clk 00:32:03]} {[%emt 00:00:28]} Kg6 {[%clk 00:01:03]} {[%emt
00:00:20]} 68. Qg4+ {[%clk 00:32:21]} {[%emt 00:00:12]} Kh7 {[%clk 00:01:05]}
{[%emt 00:00:27]} 69. Bd8 {[%clk 00:31:54]} {[%emt 00:00:57]} Qf2 {[%clk
00:00:45]} {[%emt 00:00:51]} 70. Bf6 {[%clk 00:32:06]} {[%emt 00:00:18]} Ng6
{[%clk 00:00:54]} {[%emt 00:00:21]} 71. Qd7+ {[%clk 00:32:24]} {[%emt
00:00:12]} Kh6 {[%clk 00:01:03]} {[%emt 00:00:21]} 72. Qg7+ {[%clk 00:32:47]}
{[%emt 00:00:07]} Kh5 {[%clk 00:01:27]} {[%emt 00:00:05]} 73. Qh7# {[%clk
00:32:38]} {[%emt 00:00:07]} 1-0